{"text_format":"1","workbook":"xlsx","n_sheets":1,"sheets":["Sheet1"],"not_rendered":{"charts":0,"images":0,"macros":0,"external_links":0,"defined_names":1,"comments":0,"pivot_tables":0},"unopened":[],"bounds":{"document_bytes":16777216,"sheet_cells":100000,"rows_first":2000,"rows_last":500,"rows_between":2000,"halvings":0,"cell_chars":16384,"cell_head_chars":4096},"cells_cut":0,"cells_raw":0,"read":"whole","date_system":"1900"}

{"sheet":"Sheet1","index":0,"n_rows":114,"n_cols":36,"rows_kept":114,"cut":false,"hidden":false,"merged":[[19,9,21,10],[21,2,21,5],[0,0,0,11],[4,9,4,10],[5,9,6,10],[17,1,17,8],[18,1,18,2],[18,3,18,5],[18,9,18,10],[19,1,20,2],[19,3,20,5],[19,6,20,6],[19,7,20,7],[19,8,20,8],[37,0,38,0],[37,1,38,1],[37,5,37,6],[38,5,38,6],[23,1,23,9],[25,1,25,9],[26,1,26,10],[32,1,32,10],[33,2,33,10],[34,5,34,6],[34,34,34,35],[35,0,36,0],[35,1,36,1],[35,5,35,6],[36,5,36,6],[39,0,40,0],[39,1,40,1],[39,5,39,6],[40,5,40,6],[41,0,42,0],[41,1,42,1],[41,5,41,6],[42,5,42,6],[43,0,44,0],[43,1,44,1],[43,5,43,6],[44,5,44,6],[45,0,46,0],[45,1,46,1],[45,5,45,6],[46,5,46,6],[47,0,48,0],[47,1,48,1],[47,5,47,6],[48,5,48,6],[49,0,50,0],[49,1,50,1],[49,5,49,6],[50,5,50,6],[51,0,52,0],[51,1,52,1],[51,5,51,6],[52,5,52,6],[53,0,54,0],[53,1,54,1],[53,5,53,6],[54,5,54,6],[55,0,56,0],[55,1,56,1],[55,5,55,6],[56,5,56,6],[57,0,58,0],[57,1,58,1],[57,5,57,6],[58,5,58,6]]}
["第１２回　緑区オープン混合ダブルス大会　　参加申込書"]
[]
[]
[]
[null,"開催日","： 令和７年１０月２５日(土)",null,null,null,null,null,null,"受付NO"]
[null,"申込期間 ","：協会員　　９月２１日（日）午後６時～１０月１２日(日)午後６時まで"]
[null,"　　　　　　 ","：非協会員　９月２８日（日）午後６時～１０月1２日(日)午後６時まで"]
[null,"会　場","： 緑スポーツセンター",null,null,null,null,null,null,"　※協会が記載するので空欄で"]
[null,"申込先","： 緑区バドミントン協会　運営委員会　副委員長　佐々木　卓　宛"]
[null,"問合先","：　yokohamamidoribadkyokai@gmail.com"]
[]
[null,"下記をチーム内に周知願います"]
[null,"①　当日体調不良が見られた方は出場を辞退してください"]
[null,"②　応援の方も室内履き着用してください"]
[null,"③　壮年の部はペア共に令和７年４月１日時点で５０歳以上、６０歳以上の場合エントリー可"]
[null,"④　組み合わせ会議１０月１９日（日）９時３０分から　白山地区センター２階　中会議室　（緑区登録クラブチームのみ）"]
[null,"※　参加費の集金をしますので必ずクラブから１名参加願います（緑区登録クラブチームのみ）"]
[]
[null,"クラブ名",null,"申込責任者",null,null,"協会員参加費","協会外参加費","申込組数","合計金額"]
[null,null,null,null,null,null,"2000円/1人","2300円/1人",{"$f":"COUNTA(B40:B59)","v":0},{"$f":"SUM(K40:K59)+(I22*200)","v":0}]
[]
[null,"申込責任者TEL",null,null,null,null,null,"新規登録 200円",{"$f":"COUNTA(J40:J59)","v":0}]
[]
[null,"①　登録状況欄で「協会員」か「非協会員」を選選択してください"]
[null,"②　協会員でも緑区登録クラブ名以外でエントリーの場合は「非協会員（参加費 2300円）」扱いとなりますのでご注意下さい"]
[null,"③　「名前」「ふりがな」を入力する時に「苗字」と「名前」の間に必ず全角スペースを入れてください"]
[null,"　　※「選手」「ふりがな」が黄色い場合は全角スペースが入っていませんので全角スペースを入れてください"]
[null,"④　非協会員の方は参加費「2300円」のみです。新規登録の必要はありません"]
[]
[null,"※　試合申し込みメール送信時　件名の頭にチーム名を記載し送信をお願いします"]
[null,"　　　（例）　　（山下クラブ）横浜太郎　オープン混合ダブルス申し込み"]
[null,"　　　（例）　　（個人）緑区次郎　オープン混合ダブルス申し込み"]
[]
[null,"＜出場者＞","壮年の部に出場の方は必ず生年月日を入力して下さい"]
["No.","部","名前","ふりがな","登録状況","チーム名\n全角で入力して下さい",null,"壮年の部のみ\n生年月日\n西暦(yyyy/mm/dd)","年齢","新規登録","参加費",null,null,null,null,null,null,null,null,null,null,null,null,null,null,null,null,null,null,null,null,null,null,null,"緑区クラブチーム名"]
["例","１部","山田　太郎","やまだ　たろう","協会員","TEAM KO-KI",null,null,null,null,{"$f":"IF(AC36=\"OK\",IF(AB36=\"協会員\",2000,2300))","v":2000},null,null,null,null,null,null,null,null,null,null,null,null,null,null,null,null,{"$f":"E36","v":"協会員"},{"$f":"IF(C36=\"\",\"☆\",\"OK\")","v":"OK"},null,null,null,null,null,"GTM","竹山"]
[null,null,"鈴木　緑","すずき　みどり","非協会員","ライオンズ",null,null,null,null,{"$f":"IF(AC37=\"OK\",IF(AB37=\"協会員\",2000,2300))","v":2300},null,null,null,null,null,null,null,null,null,null,null,null,null,null,null,null,{"$f":"E37","v":"非協会員"},"OK",null,null,null,null,null,"K7","テルサMIHO"]
["例","壮年６０歳","山田　次郎","やまだ　じろう","非協会員","ベイスターズ",null,"1964-02-28",{"$f":"IF(H38<>\"\",DATEDIF(H38,DATEVALUE(\"2025/4/1\"),\"Y\"),\"\")","v":61},null,{"$f":"IF(AC38=\"OK\",IF(AB38=\"協会員\",2000,2300))","v":2300},null,null,null,null,null,null,null,null,null,null,null,null,null,null,null,null,"非協会員","OK",null,null,null,null,null,"R＆S","テルサMIHOⅡ"]
[null,null,"鈴木　夢子","すずき　ゆめこ","協会員","テルサMIHO",null,"1961/7/7",{"$f":"IF(H39<>\"\",DATEDIF(H39,DATEVALUE(\"2025/4/1\"),\"Y\"),\"\")","v":63},"◎",{"$f":"IF(AC39=\"OK\",IF(AB39=\"協会員\",2000,2300))","v":2000},null,null,null,null,null,null,null,null,null,null,null,null,null,null,null,null,"協会員","OK",null,null,null,null,null,"ｒｍ＊","テルサMIHOⅢ"]
[1,null,null,null,null,null,null,null,{"$f":"IF(H40<>\"\",DATEDIF(H40,DATEVALUE(\"2025/4/1\"),\"Y\"),\"\")","v":""},null,{"$f":"IF(AC40=\"OK\",IF(AB40=\"協会員\",2000,2300))","v":false},null,null,null,null,null,null,null,null,null,null,null,null,null,null,null,null,0,"☆",null,null,null,null,null,"rush!","長津田"]
[null,null,null,null,null,null,null,null,{"$f":"IF(H41<>\"\",DATEDIF(H41,DATEVALUE(\"2025/4/1\"),\"Y\"),\"\")","v":""},null,false,null,null,null,null,null,null,null,null,null,null,null,null,null,null,null,null,0,"☆",null,null,null,null,null,"TEAM KO-KI","長津田A"]
[2,null,null,null,null,null,null,null,{"$f":"IF(H42<>\"\",DATEDIF(H42,DATEVALUE(\"2025/4/1\"),\"Y\"),\"\")","v":""},null,false,null,null,null,null,null,null,null,null,null,null,null,null,null,null,null,null,0,"☆",null,null,null,null,null,"twinkle","日南"]
[null,null,null,null,null,null,null,null,"",null,false,null,null,null,null,null,null,null,null,null,null,null,null,null,null,null,null,0,"☆",null,null,null,null,null,"エスケープ","日南A"]
[3,null,null,null,null,null,null,null,"",null,false,null,null,null,null,null,null,null,null,null,null,null,null,null,null,null,null,0,"☆",null,null,null,null,null,"エスケープダッシュ","ビリケン"]
[null,null,null,null,null,null,null,null,"",null,false,null,null,null,null,null,null,null,null,null,null,null,null,null,null,null,null,0,"☆",null,null,null,null,null,"オールディーズ","ビリケンB"]
[4,null,null,null,null,null,null,null,"",null,false,null,null,null,null,null,null,null,null,null,null,null,null,null,null,null,null,0,"☆",null,null,null,null,null,"ぐーす","ファンタジー"]
[null,null,null,null,null,null,null,null,"",null,false,null,null,null,null,null,null,null,null,null,null,null,null,null,null,null,null,0,"☆",null,null,null,null,null,"さぼてん","山下"]
[5,null,null,null,null,null,null,null,"",null,false,null,null,null,null,null,null,null,null,null,null,null,null,null,null,null,null,0,"☆",null,null,null,null,null,"スマートショット","ライト2ホワイト"]
[null,null,null,null,null,null,null,null,"",null,false,null,null,null,null,null,null,null,null,null,null,null,null,null,null,null,null,0,"☆",null,null,null,null,null,"スローエスケープ","ライト3ホワイト"]
[6,null,null,null,null,null,null,null,"",null,false,null,null,null,null,null,null,null,null,null,null,null,null,null,null,null,null,0,"☆",null,null,null,null,null,"第三山下","ライトホワイト"]
[null,null,null,null,null,null,null,null,"",null,false,null,null,null,null,null,null,null,null,null,null,null,null,null,null,null,null,0,"☆",null,null,null,null,null,"第二山下","霧が丘"]
[7,null,null,null,null,null,null,null,"",null,false,null,null,null,null,null,null,null,null,null,null,null,null,null,null,null,null,0,"☆",null,null,null,null,null,"K7  East"]
[null,null,null,null,null,null,null,null,"",null,false,null,null,null,null,null,null,null,null,null,null,null,null,null,null,null,null,0,"☆"]
[8,null,null,null,null,null,null,null,"",null,false,null,null,null,null,null,null,null,null,null,null,null,null,null,null,null,null,0,"☆"]
[null,null,null,null,null,null,null,null,"",null,false,null,null,null,null,null,null,null,null,null,null,null,null,null,null,null,null,0,"☆"]
[9,null,null,null,null,null,null,null,"",null,false,null,null,null,null,null,null,null,null,null,null,null,null,null,null,null,null,0,"☆"]
[null,null,null,null,null,null,null,null,"",null,false,null,null,null,null,null,null,null,null,null,null,null,null,null,null,null,null,0,"☆"]
[10,null,null,null,null,null,null,null,"",null,false,null,null,null,null,null,null,null,null,null,null,null,null,null,null,null,null,0,"☆"]
[null,null,null,null,null,null,null,null,"",null,false,null,null,null,null,null,null,null,null,null,null,null,null,null,null,null,null,0,"☆"]
[]
[]
[]
[]
[]
[]
[null,null,null,null,null,null,null,null,null,null,null,null,null,null,null,"１部","男性1部","◎","男子・長津田A"]
[null,null,null,null,null,null,null,null,null,null,null,null,null,null,null,"２部","男性2部",null,"男子・ビリケン"]
[null,null,null,null,null,null,null,null,null,null,null,null,null,null,null,"３部","男性3部",null,"男子・長津田"]
[null,null,null,null,null,null,null,null,null,null,null,null,null,null,null,"４部","男性4部",null,"男子・山下"]
[null,null,null,null,null,null,null,null,null,null,null,null,null,null,null,"壮年５０歳","男性壮年６０",null,"男子・TEAM KO-KI"]
[null,null,null,null,null,null,null,null,null,null,null,null,null,null,null,"壮年６０歳","男性壮年７０",null,"男子・エスケープ"]
[null,null,null,null,null,null,null,null,null,null,null,null,null,null,null,null,"女性1部","混合1部","男子・テルサMIHO"]
[null,null,null,null,null,null,null,null,null,null,null,null,null,null,null,null,"女性2部","混合4部","男子・rush!"]
[null,null,null,null,null,null,null,null,null,null,null,null,null,null,null,null,"女性3部",null,"男子・ぐーす"]
[null,null,null,null,null,null,null,null,null,null,null,null,null,null,null,null,"女性4部",null,"男子・第三山下"]
[null,null,null,null,null,null,null,null,null,null,null,null,null,null,null,null,"壮年女性６０",null,"男子・テルサMIHOⅡ"]
[null,null,null,null,null,null,null,null,null,null,null,null,null,null,null,null,"壮年女性７０",null,"男子・GTM"]
[null,null,null,null,null,null,null,null,null,null,null,null,null,null,null,null,null,null,"男子・スマートショット"]
[null,null,null,null,null,null,null,null,null,null,null,null,null,null,null,null,null,null,"男子・霧が丘"]
[null,null,null,null,null,null,null,null,null,null,null,null,null,null,null,null,null,null,"男子・エスケープダッシュ"]
[null,null,null,null,null,null,null,null,null,null,null,null,null,null,null,null,null,null,"男子・ビリケンB"]
[null,null,null,null,null,null,null,null,null,null,null,null,null,null,null,null,null,null,"男子・ライトホワイト"]
[null,null,null,null,null,null,null,null,null,null,null,null,null,null,null,null,null,null,"男子・日南"]
[null,null,null,null,null,null,null,null,null,null,null,null,null,null,null,null,null,null,"男子・第二山下"]
[null,null,null,null,null,null,null,null,null,null,null,null,null,null,null,null,null,null,"男子・K7　West"]
[null,null,null,null,null,null,null,null,null,null,null,null,null,null,null,null,null,null,"男子・テルサMIHOⅢ"]
[null,null,null,null,null,null,null,null,null,null,null,null,null,null,null,null,null,null,"男子・竹山"]
[null,null,null,null,null,null,null,null,null,null,null,null,null,null,null,null,null,null,"男子・ｒｍ＊"]
[null,null,null,null,null,null,null,null,null,null,null,null,null,null,null,null,null,null,"男子・さぼてん"]
[null,null,null,null,null,null,null,null,null,null,null,null,null,null,null,null,null,null,"男子・オールディーズ"]
[null,null,null,null,null,null,null,null,null,null,null,null,null,null,null,null,null,null,"男子・R＆S"]
[null,null,null,null,null,null,null,null,null,null,null,null,null,null,null,null,null,null,"男子・ライト3ホワイト"]
[null,null,null,null,null,null,null,null,null,null,null,null,null,null,null,null,null,null,"男子・ライト2ホワイト"]
[null,null,null,null,null,null,null,null,null,null,null,null,null,null,null,null,null,null,"女子・エスケープ"]
[null,null,null,null,null,null,null,null,null,null,null,null,null,null,null,null,null,null,"女子・rush!"]
[null,null,null,null,null,null,null,null,null,null,null,null,null,null,null,null,null,null,"女子・長津田A"]
[null,null,null,null,null,null,null,null,null,null,null,null,null,null,null,null,null,null,"女子・日南A"]
[null,null,null,null,null,null,null,null,null,null,null,null,null,null,null,null,null,null,"女子・山下"]
[null,null,null,null,null,null,null,null,null,null,null,null,null,null,null,null,null,null,"女子・テルサMIHO"]
[null,null,null,null,null,null,null,null,null,null,null,null,null,null,null,null,null,null,"女子・ファンタジー"]
[null,null,null,null,null,null,null,null,null,null,null,null,null,null,null,null,null,null,"女子・twinkle"]
[null,null,null,null,null,null,null,null,null,null,null,null,null,null,null,null,null,null,"女子・スローエスケープ"]
[null,null,null,null,null,null,null,null,null,null,null,null,null,null,null,null,null,null,"女子・オールディーズ"]
[null,null,null,null,null,null,null,null,null,null,null,null,null,null,null,null,null,null,"女子・ライトホワイト"]
[null,null,"１部","協会員",null,null,null,null,null,null,null,null,null,null,null,null,null,null,"女子・日南B"]
[null,null,"２部","非協会員",null,null,null,null,null,null,null,null,null,null,null,null,null,null,"女子・第二山下"]
[null,null,"３部",null,null,null,null,null,null,null,null,null,null,null,null,null,null,null,"女子・ｒｍ＊"]
[null,null,"４部",null,null,null,null,null,null,null,null,null,null,null,null,null,null,null,"女子・鴨居"]
[null,null,null,null,null,null,null,null,null,null,null,null,null,null,null,null,null,null,"女子・K7"]
[null,null,null,null,null,null,null,null,null,null,null,null,null,null,null,null,null,null,"女子・竹山"]
[null,null,"女性１部",null,null,null,null,null,null,null,null,null,null,null,null,null,null,null,"女子・テルサMIHO女子Ⅱ"]
[null,null,"女性２部",null,null,null,null,null,null,null,null,null,null,null,null,null,null,null,"女子・R＆S"]
[null,null,"女性３部",null,null,null,null,null,null,null,null,null,null,null,null,null,null,null,"女子・ライト2ホワイト"]
[null,null,"女性４部",null,null,null,null,null,null,null,null,null,null,null,null,null,null,null,"協会外"]